Cogmind - Beta 13 @@@ ROGUE MODE // 2024.04.13 @ 17:01:06 Player: Glyb Result: Destroyed by Y-45 Defender with Heavy Assault Rifle Performance ------------- Evolutions (1) 500 Regions Visited (4) 800 Robots Destroyed (29) 145 Value Destroyed (749) 749 Prototype IDs (0) 0 Alien Tech Used (0) 0 Bonus (0) 0 TOTAL SCORE: 2194 Bonus ------- None Cogmind --------- Core Integrity 0/400 Matter 455/500 Energy 51/100 System Corruption 0% Temperature Cool (1) Movement Walking (190) Ox1 Location -9/Storage Parts ------- > --- POWER (1) -------- (None) > --- PROPULSION (2) --- Aluminum Leg > --- UTILITY (4) ------ Heat Sink Medium Storage Unit High-capacity Matter Pod > --- WEAPON (2) ------- (None) > --- INVENTORY (10) --- Experimental Sensor Array Peak State ------------ > --- POWER ------------ Light Nuclear Core > --- PROPULSION ------- Light Treads Light Treads > --- UTILITY ---------- Medium Storage Unit High-capacity Matter Pod Improved Terrain Scanner Seismic Detector > --- WEAPON ----------- EM Shotgun Light Assault Rifle > --- INVENTORY -------- Light Ion Engine Light Treads Light Treads Experimental Sensor Array EM Shotgun Light Assault Rifle Grenade Launcher Grenade Launcher [Rating: 15] Favorites ----------- Power Light Ion Engine Engine Light Ion Engine Power Core Light Nuclear Core Propulsion Aluminum Leg Treads Light Treads Leg Aluminum Leg Utility Improved Terrain Scanner Device Improved Terrain Scanner Storage Medium Storage Unit Protection Light Armor Plating Weapon Light Assault Rifle Energy Gun EM Shotgun Ballistic Gun Light Assault Rifle Launcher Grenade Launcher Build | -11 -10 -10 -9 -9 ------- Run | Yrd Mat Min Mat Sto Slots Evolved 2 | . . . 2 . Power . | . . . . . Propulsion . | . . . . . Utility 2 | . . . 2 . Weapon . | . . . . . Parts Attached 33 | 7 2 2 12 10 Power 3 | 1 . 1 1 . Engine 2 | 1 . 1 . . Core 1 | . . . 1 . Reactor . | . . . . . Propulsion 11 | 2 . . 4 5 Treads 8 | . . . 4 4 Leg 3 | 2 . . . 1 Wheel . | . . . . . Hover . | . . . . . Flight . | . . . . . Utility 8 | 2 1 . 3 2 Device 3 | 1 . . 1 1 Storage 3 | 1 1 . 1 . Processor . | . . . . . Hackware . | . . . . . Protection 2 | . . . 1 1 Artifact . | . . . . . Weapon 11 | 2 1 1 4 3 Energy Gun 5 | 1 . . 2 2 Energy Cannon . | . . . . . Ballistic Gun 4 | 1 . . 2 1 Ballistic Cannon . | . . . . . Launcher 2 | . 1 1 . . Special Weapon . | . . . . . Impact Weapon . | . . . . . Slashing Weapon . | . . . . . Piercing Weapon . | . . . . . Special Melee Weapon . | . . . . . Unidentified Prototypes . | . . . . . Parts Lost 17 | . . 1 4 12 Power 3 | . . 1 1 1 Propulsion 4 | . . . . 4 Utility 4 | . . . 1 3 Weapon 6 | . . . 2 4 Highest Loss Streak 12 | . . 1 2 12 To Critical Strikes . | . . . . . Average Slot Usage (%) 97 | . 100 100 97 90 Engine 9 | . 14 14 9 . Core 2 | . . . . 7 Treads 10 | . . . 20 19 Leg 13 | . 28 28 1 . Device 17 | . 14 14 22 19 Storage 16 | . 14 14 17 22 Protection 1 | . . . 3 1 Energy Gun 3 | . 1 . 4 8 Ballistic Gun 14 | . 14 14 16 11 Launcher 6 | . 12 14 . . Naked Turns . | . . . . . Heaviest Build 25 | 11 18 18 25 25 Greatest Support 40 | 20 20 20 40 40 Greatest Overweight (x) 4 | . . . 1 4 Average Overweight (x) . | . . . . . Largest Inventory Capacity 10 | 8 10 10 10 10 Average Capacity 9 | 6 9 10 10 10 Most Carried 10 | 5 9 10 10 8 Average Carried 7 | 1 7 9 8 7 Final Capacity 10 | 8 10 10 10 10 Final Carried 9 | 5 9 9 8 1 Class Distribution -------------------- 80% | Mutant 19% | Scavenger-Mutant Dominant Class ---------------- Mutant | -10/Materials Mutant | -10/Mines Mutant | -9/Materials Scavenger-Mutant | -9/Storage Resources | -11 -10 -10 -9 -9 ----------- Run | Yrd Mat Min Mat Sto Matter Collected 932 | 274 . 63 328 267 Remotely . | . . . . . Salvage Created 898 | 125 39 110 410 214 Parts 53 | 8 . 17 17 11 Haulers Intercepted . | . . . . . Recyclers Shooed 2 | 1 . 1 . . Parts Field Recycled . | . . . . . Retrieved Matter . | . . . . . Parts Self-Destructed . | . . . . . Prevented . | . . . . . Kills | -11 -10 -10 -9 -9 ------- Run | Yrd Mat Min Mat Sto Combat Hostiles Destroyed 24 | . 2 11 7 4 Guns 12 | . . 1 7 4 AOE 12 | . 2 10 . . Classes Destroyed 6 | 2 1 2 1 . Tunneler 1 | 1 . . . . Recycler 2 | 1 . . 1 . Watcher 2 | . . . 2 . Swarmer 9 | . . 9 . . Grunt 10 | . 2 . 6 2 Sentry 5 | . . 2 1 2 Best Kill Streak 8 | 2 2 3 8 3 Combat Bots Only 3 | . 2 3 3 3 Max Kills in Single Turn 3 | 1 1 3 2 1 Gunslinging 1 | . . . 1 . Exploded 3 | . 1 3 . . Melee . | . . . . . Uniques/NPCs Destroyed . | . . . . . Combat | -11 -10 -10 -9 -9 -------- Run | Yrd Mat Min Mat Sto Hostile Shots Fired 250 | . 9 28 78 135 Missed 70 | . 4 13 23 30 Damage Taken 2454 | . 76 267 685 1426 Core 480 | . 14 56 121 289 Absorbed by Shields . | . . . . . Core Remaining (%) 86 | 100 . 72 . . Volleys Fired 92 | 4 13 12 34 29 Largest 2 | 2 2 2 2 2 Hottest 65 | 60 50 50 65 65 Shots Fired 156 | 8 22 24 57 45 Gun 135 | 8 13 12 57 45 Cannon . | . . . . . Launcher 21 | . 9 12 . . Special . | . . . . . Kinetic 94 | 4 13 12 33 32 Thermal 4 | 4 . . . . Explosive 21 | . 9 12 . . Electromagnetic 37 | . . . 24 13 Robot Hit Streak 12 | 1 3 4 6 12 Robot Miss Streak 4 | 3 2 3 4 4 Penetration Max . | . . . . . Secondary Targets 3 | . . . 3 . Max Gunslinging Chain 1 | . . . 1 . Shots Hit Robots 83 | 3 2 9 36 33 Core Hits 57 | 3 4 16 16 18 Critical Kills . | . . . . . Critical Parts Destroyed . | . . . . . Critical Strikes . | . . . . . Melee Attacks . | . . . . . Impact . | . . . . . Slashing . | . . . . . Piercing . | . . . . . Sneak Attacks . | . . . . . Combat Hostiles . | . . . . . Follow-up Attacks . | . . . . . Damage Inflicted 1714 | 33 270 483 538 390 Guns 970 | 33 34 13 538 352 Cannons . | . . . . . Explosions 739 | . 236 470 . 33 Melee . | . . . . . Ramming 5 | . . . . 5 Kinetic 427 | . 34 13 207 173 Thermal 128 | 33 62 . . 33 Explosive 644 | . 174 470 . . Electromagnetic 510 | . . . 331 179 Impact . | . . . . . Slashing . | . . . . . Piercing . | . . . . . Highest Corruption . | . . . . . Average Corruption . | . . . . . Corruption Purged . | . . . . . Corruption Blocked . | . . . . . Overload Shots . | . . . . . Overflow Damage 26 | . 23 . . 3 Projectiles . | . . . . . Explosions 26 | . 23 . . 3 Melee . | . . . . . Knockbacks . | . . . . . Impact . | . . . . . Kinetic . | . . . . . Secondary . | . . . . . Self-Inflicted Damage 128 | . . 87 . 41 Shots 5 | . . 4 . 1 Rammed 3 | . . . . 3 Targets Rammed 3 | . . . . 3 Kicked . | . . . . . Crushed . | . . . . . Highest Temperature 130 | 10 19 28 130 34 Average Temperature 29 | 7 9 11 51 10 Received Heat Transfer 957 | . 45 54 354 504 Siege Activations . | . . . . . Robots Corrupted . | . . . . . Combat Hostiles . | . . . . . Parts Fried 2 | . . . 1 1 Impact Corruptions . | . . . . . Robots Melted . | . . . . . Combat Hostiles . | . . . . . Parts Melted . | . . . . . Heat Transferred 175 | 75 50 . . 50 Parts Sabotaged . | . . . . . Parts Stolen . | . . . . . Parts Stripped . | . . . . . Power Chain Reactions 1 | . . . . 1 Alert | -11 -10 -10 -9 -9 ------- Run | Yrd Mat Min Mat Sto Peak Influence 380 | 10 141 380 259 113 Initial 70 | . 6 54 70 24 Average 119 | 6 54 177 176 62 Maximum Alert Level 1 | . . 1 1 . Low Security (%) 75 | 100 100 69 41 100 Level 1 24 | . . 30 58 . Level 2 . | . . . . . Level 3 . | . . . . . Level 4 . | . . . . . Level 5 . | . . . . . High Security . | . . . . . Max Security . | . . . . . Squads Dispatched 8 | . 1 . 4 3 Investigation 3 | . 1 . 1 1 Extermination . | . . . . . Reinforcement 5 | . . . 3 2 Assault . | . . . . . Garrison . | . . . . . Intercept . | . . . . . Searches Triggered . | . . . . . Construction Impeded . | . . . . . Haulers Reinforced . | . . . . . Active Scanning Responses . | . . . . . Cargo Convoy Interrupts . | . . . . . Stealth | -11 -10 -10 -9 -9 --------- Run | Yrd Mat Min Mat Sto Distress Signals 6 | . . . 5 1 Communications Jammed . | . . . . . Distress Signals . | . . . . . Times Spotted 42 | . 2 10 17 13 Peak Tracking Total 8 | . 2 3 7 8 Tactical Retreats 1 | . . . 1 . Traps | -11 -10 -10 -9 -9 ------- Run | Yrd Mat Min Mat Sto Traps Triggered 1 | . 1 . . . Indirectly . | . . . . . Trap Hack Attempts . | . . . . . Triggered . | . . . . . Disarmed . | . . . . . Reprogrammed . | . . . . . Reused . | . . . . . Traps Extracted . | . . . . . Installed . | . . . . . Triggered . | . . . . . Machines | -11 -10 -10 -9 -9 ---------- Run | Yrd Mat Min Mat Sto Machines Disabled 5 | . 2 2 . 1 Max in Single Turn 2 | . 2 2 . 1 Machines Repaired . | . . . . . Machines Dismantled . | . . . . . Machines Sabotaged . | . . . . . Overloaded Fab Kills . | . . . . . Hacking | -11 -10 -10 -9 -9 --------- Run | Yrd Mat Min Mat Sto Machines Accessed 4 | . 2 . . 2 Terminals 3 | . 2 . . 1 Fabricators . | . . . . . Repair Stations . | . . . . . Recycling Units 1 | . . . . 1 Scanalyzers . | . . . . . Garrison Access . | . . . . . Total Hacks 11 | . 6 . . 5 Successful 6 | . 4 . . 2 Failed 5 | . 2 . . 3 Catastrophic . | . . . . . Database Lockouts . | . . . . . Manual . | . . . . . Terminals 9 | . 6 . . 3 Fabricators . | . . . . . Repair Stations . | . . . . . Recycling Units 2 | . . . . 2 Scanalyzers . | . . . . . Garrison Access . | . . . . . Terminal Hacks 4 | . 4 . . . Locate Traps 1 | . 1 . . . Dispatch Records 1 | . 1 . . . Hauler Manifests 1 | . 1 . . . Zone Layout 1 | . 1 . . . Fabricator Hacks . | . . . . . Repair Station Hacks . | . . . . . Recycling Unit Hacks 2 | . . . . 2 Report Inventory 1 | . . . . 1 Retrieve Matter 1 | . . . . 1 Scanalyzer . | . . . . . Garrison Access Hacks . | . . . . . Unauthorized Hacks . | . . . . . Terminals . | . . . . . Fabricators . | . . . . . Repair Stations . | . . . . . Recycling Units . | . . . . . Scanalyzers . | . . . . . Garrison Access . | . . . . . Data Cores Recovered . | . . . . . Used . | . . . . . Hacking Detections 4 | . 2 . . 2 Full Trace Events 1 | . . . . 1 Feedback Events . | . . . . . Feedback Blocked . | . . . . . Robot Schematics Acquired . | . . . . . Robots Built . | . . . . . Authchips . | . . . . . Time . | . . . . . Total Robot Build Rating . | . . . . . Part Schematics Acquired . | . . . . . Parts Built . | . . . . . Authchips . | . . . . . Time . | . . . . . Total Part Build Rating . | . . . . . Parts Repaired . | . . . . . Time . | . . . . . Parts Recycled . | . . . . . Recycled Matter . | . . . . . Retrieved Matter . | . . . . . Retrieved Components . | . . . . . Parts Scanalyzed . | . . . . . Part Schematics Acquired . | . . . . . Parts Damaged . | . . . . . Bothacking | -11 -10 -10 -9 -9 ------------ Run | Yrd Mat Min Mat Sto Used RIF Installer . | . . . . . Robots Hacked . | . . . . . Non-combat . | . . . . . Combat . | . . . . . Robot Hacks Applied . | . . . . . Relay Couplers Released . | . . . . . Fabnet Peak Effective % . | . . . . . Robots Rewired . | . . . . . Allies Hacked . | . . . . . Hacks Repelled . | . . . . . Allies | -11 -10 -10 -9 -9 -------- Run | Yrd Mat Min Mat Sto Total Allies . | . . . . . Largest Group . | . . . . . Highest-Rated Group . | . . . . . Highest-Rated Ally . | . . . . . Total Orders . | . . . . . Ally Attacks . | . . . . . Total Damage . | . . . . . Kills . | . . . . . Allies Corrupted . | . . . . . Allies Melted . | . . . . . Intel | -11 -10 -10 -9 -9 ------- Run | Yrd Mat Min Mat Sto Robot Analysis Total . | . . . . . Derelict Logs Recovered 1 | . . 1 . . Drone Launches . | . . . . . Drone Recoveries . | . . . . . Exploration | -11 -10 -10 -9 -9 ------------- Run | Yrd Mat Min Mat Sto Turns Passed 1555 | 91 271 407 427 359 Spaces Moved 881 | 54 191 302 189 145 Core 5 | 4 . . . 1 Treads 325 | . . . 182 143 Legs 551 | 50 191 302 7 1 Wheels . | . . . . . Hover . | . . . . . Flight . | . . . . . Fastest Speed 50 | 50 120 120 160 160 Average Speed 135 | 114 120 120 161 160 Slowest Speed 250 | 120 120 120 190 250 Overloaded Moves . | . . . . . Propulsion Burnouts . | . . . . . Robots Hopped . | . . . . . Cave-ins Triggered . | . . . . . Exploration Rate (%) 31 | 4 32 72 21 27 Regions Visited 4 Branch Regions 2 Pre-discovered Areas . | . . . . . Known Exits Taken . | . . . . . Unknown Exits Taken 4 | 1 1 1 1 . Scrap Searched 1 | . . 1 . . Spaces Dug . | . . . . . Terrain Destroyed 161 | . 70 87 . 4 Melee . | . . . . . Projectile . | . . . . . AOE 161 | . 70 87 . 4 Terrain Rammed . | . . . . . Walls Destroyed . | . . . . . Machines Disabled . | . . . . . Actions | -11 -10 -10 -9 -9 --------- Run | Yrd Mat Min Mat Sto Total 1096 | 72 212 325 258 229 Wait 59 | 3 4 7 4 41 Move 877 | 53 190 301 188 145 Hop . | . . . . . Pick Up 22 | 5 3 2 12 . Fast Attach 8 | 7 . . . 1 Attach 13 | . . 1 6 6 Detach . | . . . . . Swap 12 | . 2 1 6 3 Drop 10 | . . 1 8 1 Fire 92 | 4 13 12 34 29 Melee . | . . . . . Ram 1 | . . . . 1 Kick . | . . . . . Crush 2 | . . . . 2 Escape Stasis . | . . . . . Rewire . | . . . . . Trap . | . . . . . Miscellaneous . | . . . . . Route ------- -11/Scrapyard -10/Materials -10/Mines (discovered 2 exits: [*Mat x2]) -9/Materials (discovered 2 exits: [*Mat] / *Sto) -9/Storage History --------- Turn | Location | Event 8 | -11/Scrapyard | Discovered new exit (range 15) 92 | -11/Scrapyard | Entered Materials 311 | -10/Materials | Build established: Mutant 320 | -10/Materials | Discovered new exit (range 14) 363 | -10/Materials | Entered Mines 518 | -10/Mines | Discovered new exit (range 5) 593 | -10/Mines | Found a damaged Exp. Sensor Array with a note attached 596 | -10/Mines | Found Prototype Device 616 | -10/Mines | Learned Materials terminal intel 711 | -10/Mines | Discovered new exit (range 11) 770 | -10/Mines | Entered Materials 770 | -9/Materials | Evolved 2 slots: Utility x2 771 | -9/Materials | Loaded intel: 12 terminal locations 934 | -9/Materials | Met 8R-AWN 1022 | -9/Materials | Discovered new exit (range 12) 1102 | -9/Materials | Discovered new exit (range 11) 1197 | -9/Materials | Entered Storage 1469 | -9/Storage | Core integrity fell below 50% 1472 | -9/Storage | Build established: Scavenger-Mutant 1550 | -9/Storage | Core integrity fell below 20% 1556 | -9/Storage | Destroyed by Y-45 Defender with Heavy Assault Rifle Last Messages --------------- 01492_ Lgt. Treads destroyed. 01499_ G-34 Mercenary destroyed. 01501_ Door Terminal disabled. 01507_ K-01 Serf collects debris. 01513_ Imp. Terrain Scanner destroyed. 01519_ Lgt. Treads destroyed. [Achievement: Crack Shot] 01531_ EM Shotgun destroyed. 01534_ Lgt. Treads destroyed. 01542_ Heat Sink fried. 01542_ Y-45 Defender destroyed. 01546_ EM Shotgun destroyed. 01546_ Slammed into Y-45 Defender. 01547_ Slammed into G-34 Mercenary. 01548_ Acquired 168 matter. 01549_ Lgt. Armor Plating destroyed. 01549_ Lgt. Treads destroyed. 01549_ Slammed into G-34 Mercenary. 01554_ Acquired Aluminum Leg. 01556_ G-34 Mercenary destroyed. Map ----- +----------------------------------------------------+ | ???# #???#????????????????????????? | | #??# #####+#####??? ????????????????????? | | #??# ##[ ! #???? ????????????????????? | | ???# ## #? ?????#?? ??????????????? | | ?#?# ## ] #? ?? ????????????????????? | | ???# ## * #??? ?????????????????????? | | ####+## ##?? ?????????????????????? | | # # #????? ?##+##?????????????? | | # # ##+##+## #?????????????? | | # # # #?????????????? | | # # # #?"???????????? | | # """ # ! + T #?????????????? | | # """ # # ^ ![ #? ???????????? | | # """ ##+###### [[ #?????????????? | | # ## ##### ## ????????? | | # " " # ????????? | | # "R" # ????????? | | # """ + ### ###### ????????? | | ? # ##### ####+######????????????? | | # ##### ?????# # #????????????? | | ???#??# ?????# + #?? ?????????? | | ???#?????????# # """ """ +????????????? | | ?????????????# # """ """??????????????? | | ???????? ???##[ #?""" """ #????????????? | | ????#???? ?#?#![*#? #????????????? | | ????????? ???#%!@# #????????????? | | ??#??#????#??#g=*+ ???????????????? | | ?????#???????#%[g#???"###???????????????? | | ????????????##Y###???"#?????????????????? | | ????????????#**#????????????????????????? | | ??????#?????##"#?????#??????????????????? | | ???????????#??????????#?????????????????? | | ??????#????#????????????????????????????? | | ???????#??#??#?#????#???????????????????? | | | | | | | | | | | | | | | | | | | | | | | | | | | | | | | | | +----------------------------------------------------+ Best States ------------- Heat Dissipation 38 Energy Generation 14 Energy Capacity 160 Matter Stores 465 Matter Capacity 500 Sight Range 16 Terrain Scan Range 16 Terrain Scan Density 10 Armor Coverage 150 Evasion (%) 55 Recoil Reduction 2 Item Schematics ----------------- None Robot Schematics ------------------ None Fabricated ------------ Nothing Alien Tech Used ----------------- None Achievements -------------- Crack Shot Oops Challenges ------------ None Game ------ Seed DisruptionSkeletonSheargun Manual? 0 Play Time 00:34:21 Cumulative 2.0 hours Start 2024.04.13 @ 16:26:17 End 2024.04.13 @ 17:01:06 Sessions 1 Manual Loads 0 Difficulty Rogue Special Mode None Game No. 3 Rogue 3 Adventurer 0 Explorer 0 Win Type - Total 0 Types 0/0/0/0/0/0/0/0/0 Lore% 1 Gallery% 4 Achievement% 5 Wizard Run 0 Options --------- Layout 0 ASCII 0 Keyboard 1 Movement Numpad Keybinds 0 Fullscreen 2 Font 18/SmallcapsGlow Map View 112x50 Zoom Use 1% Tactical HUD 1 Map Filters NONE Filters NONE Steam 1 RUN: 3dfb5903-435a-4635-8f57-549cde8f7384